[Event "*** Titled Tuesday Blitz"]
[Site "Chess.com"]
[Date "2018.10.02"]
[Round "2"]
[White "nochewycandy"]
[Black "Nathan_Filgueiras"]
[Result "0-1"]
[WhiteElo "2171"]
[BlackElo "2210"]
[TimeControl "180+2"]
[EndTime "13:25:13 PDT"]
[Termination "Nathan_Filgueiras won by checkmate"]

1. e4 {[%clk 0:03:01.9]} 1... c5 {[%clk 0:03:00.9]} 2. Nf3 {[%clk 0:03:02.5]}
2... Nc6 {[%clk 0:03:02]} 3. Bb5 {[%clk 0:03:02.9]} 3... e5 {[%clk 0:03:02.4]}
4. c3 {[%clk 0:02:55.7]} 4... Bd6 {[%clk 0:02:56.7]} 5. O-O {[%clk 0:02:56.1]}
5... Nge7 {[%clk 0:02:57.1]} 6. d3 {[%clk 0:02:54.3]} 6... O-O {[%clk
0:02:55.7]} 7. Re1 {[%clk 0:02:48.8]} 7... a6 {[%clk 0:02:56.4]} 8. Ba4 {[%clk
0:02:49.6]} 8... Bc7 {[%clk 0:02:50.4]} 9. Bb3 {[%clk 0:02:43.8]} 9... d5 {[%clk
0:02:37.2]} 10. exd5 {[%clk 0:02:44.1]} 10... Nxd5 {[%clk 0:02:37.6]} 11. Bg5
{[%clk 0:02:42]} 11... f6 {[%clk 0:02:35]} 12. Be3 {[%clk 0:02:30.8]} 12... b6
{[%clk 0:02:24.6]} 13. d4 {[%clk 0:02:28.8]} 13... cxd4 {[%clk 0:02:23.3]} 14.
cxd4 {[%clk 0:02:29.7]} 14... Kh8 {[%clk 0:02:16.2]} 15. dxe5 {[%clk 0:02:29.7]}
15... Nxe3 {[%clk 0:02:13.8]} 16. Qxd8 {[%clk 0:02:28.4]} 16... Rxd8 {[%clk
0:02:12.9]} 17. Rxe3 {[%clk 0:02:19.6]} 17... Nxe5 {[%clk 0:02:09.1]} 18. Nbd2
{[%clk 0:01:59.9]} 18... Bb7 {[%clk 0:01:08.7]} 19. Rc3 {[%clk 0:01:39.5]} 19...
Rac8 {[%clk 0:01:05.6]} 20. Be6 {[%clk 0:01:25.5]} 20... Nd7 {[%clk 0:00:55.4]}
21. Rac1 {[%clk 0:01:14.6]} 21... Bf4 {[%clk 0:00:26.4]} 22. Rxc8 {[%clk
0:01:11.5]} 22... Bxc8 {[%clk 0:00:21.8]} 23. Rc6 {[%clk 0:00:31.1]} 23... Bb7
{[%clk 0:00:14.4]} 24. Rc4 {[%clk 0:00:18.5]} 24... Bxd2 {[%clk 0:00:14.8]} 25.
Nxd2 {[%clk 0:00:18.8]} 25... Nc5 {[%clk 0:00:16.5]} 26. Rxc5 {[%clk 0:00:07.5]}
26... bxc5 {[%clk 0:00:15.6]} 27. Nf1 {[%clk 0:00:05.2]} 27... Rd1 {[%clk
0:00:15.3]} 28. Bb3 {[%clk 0:00:05.9]} 28... Rb1 {[%clk 0:00:16.2]} 29. f3
{[%clk 0:00:06.5]} 29... a5 {[%clk 0:00:15]} 30. Bc4 {[%clk 0:00:07.4]} 30...
Rxb2 {[%clk 0:00:15.4]} 31. Ne3 {[%clk 0:00:07.9]} 31... Bc6 {[%clk 0:00:15.6]}
32. Nf5 {[%clk 0:00:09]} 32... Bb5 {[%clk 0:00:14.8]} 33. Bd5 {[%clk 0:00:10.5]}
33... g6 {[%clk 0:00:13]} 34. Nd6 {[%clk 0:00:11.8]} 34... Bd3 {[%clk 0:00:14]}
35. h4 {[%clk 0:00:07.8]} 35... Rc2 {[%clk 0:00:14.6]} 36. h5 {[%clk 0:00:08.8]}
36... c4 {[%clk 0:00:12.8]} 37. h6 {[%clk 0:00:09.7]} 37... Rd2 {[%clk
0:00:05.7]} 38. Nf7+ {[%clk 0:00:09.9]} 38... Kg8 {[%clk 0:00:07.3]} 39. Ng5+
{[%clk 0:00:07.9]} 39... Kf8 {[%clk 0:00:07.6]} 40. Nxh7+ {[%clk 0:00:09.1]}
40... Ke7 {[%clk 0:00:09.1]} 41. Ng5 {[%clk 0:00:07]} 41... c3 {[%clk 0:00:05]}
42. h7 {[%clk 0:00:07.8]} 42... c2 {[%clk 0:00:06.5]} 43. h8=Q {[%clk 0:00:09]}
43... c1=Q+ {[%clk 0:00:07.9]} 44. Kh2 {[%clk 0:00:10.5]} 44... fxg5 {[%clk
0:00:08.6]} 45. Qe5+ {[%clk 0:00:10.8]} 45... Kd7 {[%clk 0:00:09.2]} 46. Qe6+
{[%clk 0:00:12.2]} 46... Kc7 {[%clk 0:00:10.2]} 47. Qe7+ {[%clk 0:00:13.8]}
47... Kb6 {[%clk 0:00:11]} 48. Qd6+ {[%clk 0:00:15]} 48... Kb5 {[%clk
0:00:10.8]} 49. Qd7+ {[%clk 0:00:15.5]} 49... Kb4 {[%clk 0:00:10.2]} 50. Qe7+
{[%clk 0:00:16.5]} 50... Kc3 {[%clk 0:00:10.7]} 51. Qc5+ {[%clk 0:00:17]} 51...
Kb2 {[%clk 0:00:09.7]} 52. Qb5+ {[%clk 0:00:17.8]} 52... Ka1 {[%clk 0:00:09]}
53. Qe8 {[%clk 0:00:16.7]} 53... Qb2 {[%clk 0:00:09.6]} 54. f4 {[%clk
0:00:16.7]} 54... Bf1 {[%clk 0:00:09.1]} 55. Qe1+ {[%clk 0:00:17.8]} 55... Qb1
{[%clk 0:00:06.5]} 56. Qxd2 {[%clk 0:00:18.7]} 56... Bb5 {[%clk 0:00:05.3]} 57.
Qc3+ {[%clk 0:00:19.7]} 57... Qb2 {[%clk 0:00:06.3]} 58. Qxb2+ {[%clk 0:00:20]}
58... Kxb2 {[%clk 0:00:08.2]} 59. fxg5 {[%clk 0:00:21.6]} 59... Bd3 {[%clk
0:00:09]} 60. Kg3 {[%clk 0:00:22.2]} 60... Bb1 {[%clk 0:00:10.3]} 61. Kf4 {[%clk
0:00:20.6]} 61... Bxa2 {[%clk 0:00:11.1]} 62. Be4 {[%clk 0:00:22.2]} 62... Bb1
{[%clk 0:00:11.6]} 63. Bc6 {[%clk 0:00:13.1]} 63... Ka3 {[%clk 0:00:12.3]} 64.
Ke5 {[%clk 0:00:14.4]} 64... a4 {[%clk 0:00:13.6]} 65. Kd4 {[%clk 0:00:15.2]}
65... Kb4 {[%clk 0:00:14.7]} 66. Bxa4 {[%clk 0:00:15.8]} 66... Kxa4 {[%clk
0:00:15.7]} 67. Kc5 {[%clk 0:00:17.1]} 67... Kb3 {[%clk 0:00:16.9]} 68. Kd6
{[%clk 0:00:19]} 68... Kc3 {[%clk 0:00:18.2]} 69. Ke5 {[%clk 0:00:20.9]} 69...
Kd2 {[%clk 0:00:19.6]} 70. Ke6 {[%clk 0:00:22.8]} 70... Ke3 {[%clk 0:00:20.8]}
71. Kf6 {[%clk 0:00:24.7]} 71... Kf2 {[%clk 0:00:21.8]} 72. g4 {[%clk
0:00:26.6]} 72... Kg3 {[%clk 0:00:23.2]} 73. Kg7 {[%clk 0:00:28.5]} 73... Kxg4
{[%clk 0:00:24.6]} 74. Kh6 {[%clk 0:00:30.4]} 74... Kf5 {[%clk 0:00:25.6]} 75.
Kg7 {[%clk 0:00:31.8]} 75... Kxg5 {[%clk 0:00:27.5]} 76. Kf7 {[%clk 0:00:33.1]}
76... Kf4 {[%clk 0:00:29.1]} 77. Ke6 {[%clk 0:00:35]} 77... g5 {[%clk
0:00:30.8]} 78. Kd5 {[%clk 0:00:36.9]} 78... g4 {[%clk 0:00:32.5]} 79. Kd4
{[%clk 0:00:38.8]} 79... g3 {[%clk 0:00:34.3]} 80. Kc3 {[%clk 0:00:40.7]} 80...
g2 {[%clk 0:00:35.6]} 81. Kd2 {[%clk 0:00:42.6]} 81... g1=Q {[%clk 0:00:37.5]}
82. Ke2 {[%clk 0:00:38.8]} 82... Qe3+ {[%clk 0:00:37.7]} 83. Kd1 {[%clk
0:00:40.1]} 83... Qf2 {[%clk 0:00:39]} 84. Kc1 {[%clk 0:00:41.3]} 84... Qc2#
{[%clk 0:00:40.9]} 0-1

[Event "*** Titled Tuesday Blitz"]
[Site "Chess.com"]
[Date "2018.10.02"]
[Round "3"]
[White "farzadbfd"]
[Black "xamax2000"]
[Result "1-0"]
[WhiteElo "2555"]
[BlackElo "2448"]
[TimeControl "180+2"]
[EndTime "13:31:20 PDT"]
[Termination "farzadbfd won by resignation"]

1. e4 {[%clk 0:03:01.9]} 1... c5 {[%clk 0:03:00.2]} 2. Nc3 {[%clk 0:03:02.4]}
2... d6 {[%clk 0:03:00.1]} 3. g3 {[%clk 0:03:04]} 3... Nc6 {[%clk 0:02:59.3]} 4.
Bg2 {[%clk 0:03:05.5]} 4... g6 {[%clk 0:03:00.7]} 5. d3 {[%clk 0:03:07.2]} 5...
Bg7 {[%clk 0:03:02]} 6. Be3 {[%clk 0:03:08.9]} 6... e5 {[%clk 0:03:01.5]} 7.
Nge2 {[%clk 0:03:09.3]} 7... Nge7 {[%clk 0:03:01.7]} 8. O-O {[%clk 0:03:10]}
8... O-O {[%clk 0:02:58.1]} 9. f4 {[%clk 0:03:11.6]} 9... exf4 {[%clk
0:02:58.1]} 10. Nxf4 {[%clk 0:03:12.7]} 10... Nd4 {[%clk 0:02:55.3]} 11. Qd2
{[%clk 0:03:13.8]} 11... f5 {[%clk 0:02:53.9]} 12. Ncd5 {[%clk 0:03:08]} 12...
Nxd5 {[%clk 0:02:51.6]} 13. exd5 {[%clk 0:03:06.5]} 13... Nb5 {[%clk 0:02:45.1]}
14. c3 {[%clk 0:02:43.7]} 14... Nc7 {[%clk 0:02:44.2]} 15. a4 {[%clk 0:02:41.2]}
15... Bd7 {[%clk 0:02:42.2]} 16. Nh3 {[%clk 0:02:34.5]} 16... Qf6 {[%clk
0:02:38.7]} 17. Bg5 {[%clk 0:02:33.2]} 17... Qf7 {[%clk 0:02:39.3]} 18. Bh6
{[%clk 0:02:34.4]} 18... Nxd5 {[%clk 0:02:12.3]} 19. Bxg7 {[%clk 0:02:34.9]}
19... Kxg7 {[%clk 0:02:11.7]} 20. Ng5 {[%clk 0:02:36.2]} 20... Qg8 {[%clk
0:02:12.9]} 21. c4 {[%clk 0:02:30.7]} 21... Nf6 {[%clk 0:02:12.3]} 22. Rfe1
{[%clk 0:02:28.8]} 22... Rfe8 {[%clk 0:02:12.4]} 23. Bxb7 {[%clk 0:02:28.5]}
23... Rab8 {[%clk 0:02:13.2]} 24. Rxe8 {[%clk 0:02:16.6]} 24... Qxe8 {[%clk
0:02:15.1]} 25. Re1 {[%clk 0:02:17]} 25... Qg8 {[%clk 0:02:17]} 26. Bg2 {[%clk
0:02:10.4]} 26... Qe8 {[%clk 0:02:18.7]} 27. Rxe8 {[%clk 0:02:10.6]} 27... Rxe8
{[%clk 0:02:18.4]} 28. Qa5 {[%clk 0:02:08.8]} 1-0

[Event "*** Titled Tuesday Blitz"]
[Site "Chess.com"]
[Date "2018.10.02"]
[Round "3"]
[White "Witik"]
[Black "jerom555888"]
[Result "0-1"]
[WhiteElo "2555"]
[BlackElo "2707"]
[TimeControl "180+2"]
[EndTime "13:31:24 PDT"]
[Termination "jerom555888 won by resignation"]

1. d4 {[%clk 0:03:01.9]} 1... f5 {[%clk 0:03:00.3]} 2. g3 {[%clk 0:03:01.9]}
2... Nf6 {[%clk 0:03:01.6]} 3. Bg2 {[%clk 0:03:03]} 3... g6 {[%clk 0:03:03.3]}
4. c3 {[%clk 0:03:03.9]} 4... Bg7 {[%clk 0:03:04.9]} 5. Qb3 {[%clk 0:03:05.1]}
5... Nc6 {[%clk 0:02:50.5]} 6. Nd2 {[%clk 0:03:04.9]} 6... d5 {[%clk 0:02:49]}
7. Ndf3 {[%clk 0:03:00.6]} 7... Ne4 {[%clk 0:02:48.3]} 8. Nh3 {[%clk 0:02:53.6]}
8... e5 {[%clk 0:02:47.3]} 9. dxe5 {[%clk 0:02:53]} 9... Nxe5 {[%clk 0:02:47.5]}
10. O-O {[%clk 0:02:53.1]} 10... Nc4 {[%clk 0:02:45.4]} 11. Rd1 {[%clk 0:02:52]}
11... c6 {[%clk 0:02:44]} 12. Nfg5 {[%clk 0:02:36.1]} 12... O-O {[%clk
0:02:42.6]} 13. Nxe4 {[%clk 0:02:25.9]} 13... fxe4 {[%clk 0:02:42.8]} 14. Nf4
{[%clk 0:02:03.4]} 14... Qe7 {[%clk 0:02:30.6]} 15. Nxd5 {[%clk 0:00:59.2]}
15... cxd5 {[%clk 0:02:29.4]} 16. Rxd5 {[%clk 0:01:00.7]} 16... Qf7 {[%clk
0:02:25.2]} 17. Qxc4 {[%clk 0:00:58.6]} 17... Qxf2+ {[%clk 0:02:25.8]} 18. Kh1
{[%clk 0:00:57.3]} 18... Qe1+ {[%clk 0:02:27.7]} 0-1

[Event "*** Titled Tuesday Blitz"]
[Site "Chess.com"]
[Date "2018.10.02"]
[Round "3"]
[White "Phelathegreat"]
[Black "NeverEverForever1990"]
[Result "0-1"]
[WhiteElo "2314"]
[BlackElo "2427"]
[TimeControl "180+2"]
[EndTime "13:32:03 PDT"]
[Termination "NeverEverForever1990 won by resignation"]

1. d4 {[%clk 0:03:01.9]} 1... Nf6 {[%clk 0:03:01.1]} 2. c4 {[%clk 0:03:02.9]}
2... e6 {[%clk 0:03:02.5]} 3. Nf3 {[%clk 0:03:03.6]} 3... d5 {[%clk 0:03:03.8]}
4. g3 {[%clk 0:03:05.1]} 4... Bb4+ {[%clk 0:02:58.7]} 5. Bd2 {[%clk 0:03:05]}
5... Be7 {[%clk 0:02:59.5]} 6. Bg2 {[%clk 0:03:06.6]} 6... O-O {[%clk
0:03:01.1]} 7. O-O {[%clk 0:03:08.3]} 7... c6 {[%clk 0:03:00.6]} 8. Qc2 {[%clk
0:03:08.8]} 8... b6 {[%clk 0:02:56]} 9. Bf4 {[%clk 0:03:09.6]} 9... Nbd7 {[%clk
0:02:52.1]} 10. Nbd2 {[%clk 0:03:10.6]} 10... Ba6 {[%clk 0:02:45.2]} 11. Rfe1
{[%clk 0:03:10.3]} 11... Nh5 {[%clk 0:02:43.9]} 12. e4 {[%clk 0:03:06.2]} 12...
Nxf4 {[%clk 0:02:43.4]} 13. gxf4 {[%clk 0:03:08.1]} 13... dxe4 {[%clk
0:02:43.9]} 14. Nxe4 {[%clk 0:03:10]} 14... Rc8 {[%clk 0:02:41.3]} 15. Rad1
{[%clk 0:03:09.4]} 15... Nf6 {[%clk 0:02:38.9]} 16. Ne5 {[%clk 0:03:10.5]} 16...
Qe8 {[%clk 0:02:29]} 17. Kh1 {[%clk 0:03:07.5]} 17... g6 {[%clk 0:02:13.1]} 18.
b3 {[%clk 0:03:04.5]} 18... Bb7 {[%clk 0:02:12.9]} 19. Re3 {[%clk 0:03:05.2]}
19... Nxe4 {[%clk 0:02:09.7]} 20. Bxe4 {[%clk 0:03:04.7]} 20... Ba8 {[%clk
0:01:59.9]} 21. Rh3 {[%clk 0:03:05.2]} 21... c5 {[%clk 0:01:58.4]} 22. d5 {[%clk
0:03:05.3]} 22... exd5 {[%clk 0:01:58.2]} 23. cxd5 {[%clk 0:03:05.1]} 23... Bd6
{[%clk 0:01:58.4]} 24. Ng4 {[%clk 0:02:58.2]} 24... f5 {[%clk 0:01:56.6]} 25.
Nh6+ {[%clk 0:02:59.3]} 25... Kg7 {[%clk 0:01:52.8]} 26. Bxf5 {[%clk 0:02:54.6]}
26... Bxf4 {[%clk 0:01:38.5]} 27. Bxc8 {[%clk 0:02:50.2]} 27... Qxc8 {[%clk
0:01:23.5]} 28. Qc3+ {[%clk 0:02:44.2]} 28... Rf6 {[%clk 0:01:21.1]} 29. Kg1
{[%clk 0:02:44.6]} 29... Bxh6 {[%clk 0:01:16.3]} 30. d6 {[%clk 0:02:34.7]} 30...
Qg4+ {[%clk 0:01:14.7]} 31. Rg3 {[%clk 0:02:36.3]} 31... Qxd1+ {[%clk
0:01:14.4]} 0-1

[Event "*** Titled Tuesday Blitz"]
[Site "Chess.com"]
[Date "2018.10.02"]
[Round "3"]
[White "tteshan"]
[Black "Godzillator"]
[Result "0-1"]
[WhiteElo "2023"]
[BlackElo "2254"]
[TimeControl "180+2"]
[EndTime "13:32:26 PDT"]
[Termination "Godzillator won by resignation"]

1. d4 {[%clk 0:03:01.9]} 1... d5 {[%clk 0:03:00.4]} 2. c4 {[%clk 0:03:02.4]}
2... c6 {[%clk 0:03:01.4]} 3. Nc3 {[%clk 0:03:02.8]} 3... Nf6 {[%clk 0:03:02.5]}
4. e3 {[%clk 0:03:04.2]} 4... a6 {[%clk 0:03:02.8]} 5. Nf3 {[%clk 0:03:04.8]}
5... Bf5 {[%clk 0:03:03.7]} 6. cxd5 {[%clk 0:03:05.2]} 6... cxd5 {[%clk
0:03:04.3]} 7. Qb3 {[%clk 0:03:06.6]} 7... b5 {[%clk 0:03:05.4]} 8. a4 {[%clk
0:03:05.2]} 8... b4 {[%clk 0:03:06.5]} 9. Qxb4 {[%clk 0:03:01.9]} 9... Nc6
{[%clk 0:03:07.6]} 10. Qb7 {[%clk 0:02:46.5]} 10... Na5 {[%clk 0:03:00]} 11.
Bb5+ {[%clk 0:02:04.9]} 11... axb5 {[%clk 0:02:59.5]} 12. Qxb5+ {[%clk
0:02:04.3]} 12... Bd7 {[%clk 0:02:59.3]} 13. Qd3 {[%clk 0:02:00]} 13... Nb3
{[%clk 0:02:57.9]} 14. Rb1 {[%clk 0:01:56.8]} 14... Nxc1 {[%clk 0:02:57.8]} 15.
Rxc1 {[%clk 0:01:56.7]} 15... e6 {[%clk 0:02:58.3]} 16. b3 {[%clk 0:01:54.5]}
16... Bb4 {[%clk 0:02:58]} 17. O-O {[%clk 0:01:53.4]} 17... O-O {[%clk
0:02:58.8]} 18. Ne5 {[%clk 0:01:50]} 18... Rc8 {[%clk 0:02:52]} 19. Nxd7 {[%clk
0:01:45.9]} 19... Qxd7 {[%clk 0:02:50.8]} 20. Nb5 {[%clk 0:01:46]} 20... Rxc1
{[%clk 0:02:38.9]} 21. Rxc1 {[%clk 0:01:45.7]} 21... Rc8 {[%clk 0:02:40.3]} 22.
Qd1 {[%clk 0:01:36.9]} 22... Ne4 {[%clk 0:02:33.8]} 23. f3 {[%clk 0:01:35.7]}
23... Nc3 {[%clk 0:02:34.3]} 24. Nxc3 {[%clk 0:01:34.4]} 24... Rxc3 {[%clk
0:02:30.9]} 25. Rxc3 {[%clk 0:01:26.1]} 25... Bxc3 {[%clk 0:02:31.8]} 26. Qd3
{[%clk 0:01:22.2]} 26... Qc7 {[%clk 0:02:32.8]} 27. Qb5 {[%clk 0:01:19.4]} 27...
g6 {[%clk 0:02:33.7]} 28. Qd3 {[%clk 0:01:11.5]} 28... Bb4 {[%clk 0:02:29.4]}
29. h3 {[%clk 0:01:06.2]} 29... Qc3 {[%clk 0:02:20.9]} 30. Qe2 {[%clk
0:00:54.8]} 30... Qxb3 {[%clk 0:02:20.3]} 0-1

[Event "*** Titled Tuesday Blitz"]
[Site "Chess.com"]
[Date "2018.10.02"]
[Round "3"]
[White "Anton_Demchenko"]
[Black "Thjop"]
[Result "1-0"]
[WhiteElo "2835"]
[BlackElo "2624"]
[TimeControl "180+2"]
[EndTime "13:32:27 PDT"]
[Termination "Anton_Demchenko won by resignation"]

1. d4 {[%clk 0:02:48.4]} 1... Nf6 {[%clk 0:02:58.6]} 2. Bf4 {[%clk 0:02:48.9]}
2... g6 {[%clk 0:02:59]} 3. Nc3 {[%clk 0:02:49.4]} 3... Bg7 {[%clk 0:02:46.3]}
4. e4 {[%clk 0:02:46.3]} 4... d6 {[%clk 0:02:47.2]} 5. Qd2 {[%clk 0:02:47]} 5...
O-O {[%clk 0:02:47.7]} 6. O-O-O {[%clk 0:02:47.3]} 6... c6 {[%clk 0:02:40.7]} 7.
Bh6 {[%clk 0:02:39.8]} 7... b5 {[%clk 0:02:36]} 8. f3 {[%clk 0:02:33.7]} 8... b4
{[%clk 0:02:27.4]} 9. Nce2 {[%clk 0:02:29.6]} 9... a5 {[%clk 0:02:28]} 10. h4
{[%clk 0:02:26.2]} 10... Be6 {[%clk 0:01:32.4]} 11. Kb1 {[%clk 0:02:24.8]} 11...
Bxh6 {[%clk 0:01:05.8]} 12. Qxh6 {[%clk 0:02:25]} 12... a4 {[%clk 0:01:06.1]}
13. h5 {[%clk 0:02:18.3]} 13... b3 {[%clk 0:01:03.3]} 14. cxb3 {[%clk
0:02:16.6]} 14... axb3 {[%clk 0:01:02.8]} 15. a3 {[%clk 0:02:18]} 15... Ra5
{[%clk 0:00:58.9]} 16. Nf4 {[%clk 0:02:07.7]} 16... g5 {[%clk 0:00:56.3]} 17.
Nxe6 {[%clk 0:01:40]} 17... fxe6 {[%clk 0:00:58.2]} 18. Nh3 {[%clk 0:01:41.7]}
18... Kh8 {[%clk 0:00:46.3]} 19. Nxg5 {[%clk 0:01:40]} 19... Qd7 {[%clk
0:00:45]} 20. Qxf8+ {[%clk 0:01:39.8]} 1-0

[Event "*** Titled Tuesday Blitz"]
[Site "Chess.com"]
[Date "2018.10.02"]
[Round "3"]
[White "jncool68"]
[Black "BocharovD"]
[Result "1-0"]
[WhiteElo "2692"]
[BlackElo "2787"]
[TimeControl "180+2"]
[EndTime "13:33:04 PDT"]
[Termination "jncool68 won by resignation"]

1. e4 {[%clk 0:03:01.9]} 1... c5 {[%clk 0:02:59.1]} 2. Nf3 {[%clk 0:03:02.8]}
2... e6 {[%clk 0:03:00.7]} 3. d4 {[%clk 0:03:03.5]} 3... cxd4 {[%clk 0:03:02.3]}
4. Nxd4 {[%clk 0:03:05.1]} 4... a6 {[%clk 0:03:03.9]} 5. Be2 {[%clk 0:03:05.5]}
5... Nf6 {[%clk 0:03:04]} 6. Nc3 {[%clk 0:03:06.5]} 6... d6 {[%clk 0:03:05.6]}
7. O-O {[%clk 0:03:07.1]} 7... Nbd7 {[%clk 0:03:07.1]} 8. f4 {[%clk 0:03:00.8]}
8... b5 {[%clk 0:03:07.8]} 9. Bf3 {[%clk 0:03:01.9]} 9... Bb7 {[%clk 0:03:08.2]}
10. e5 {[%clk 0:03:00.8]} 10... Bxf3 {[%clk 0:03:08.4]} 11. Nxf3 {[%clk
0:03:01.9]} 11... Ng4 {[%clk 0:03:08.3]} 12. Qe1 {[%clk 0:03:00.5]} 12... b4
{[%clk 0:03:06.9]} 13. Ne4 {[%clk 0:02:56.3]} 13... d5 {[%clk 0:02:53.1]} 14.
Ng3 {[%clk 0:02:48.3]} 14... g6 {[%clk 0:02:48.2]} 15. h3 {[%clk 0:02:46.4]}
15... Bc5+ {[%clk 0:02:45.6]} 16. Kh1 {[%clk 0:02:45.8]} 16... h5 {[%clk
0:02:45.9]} 17. a3 {[%clk 0:02:19.8]} 17... Qb6 {[%clk 0:02:43.9]} 18. axb4
{[%clk 0:02:17.1]} 18... Bf2 {[%clk 0:02:40.4]} 19. Rxf2 {[%clk 0:02:16]} 19...
Qxf2 {[%clk 0:02:40.8]} 20. Qxf2 {[%clk 0:02:14.8]} 20... Nxf2+ {[%clk
0:02:42.1]} 21. Kg1 {[%clk 0:02:13.5]} 21... h4 {[%clk 0:02:25.6]} 22. Kxf2
{[%clk 0:02:10]} 22... hxg3+ {[%clk 0:02:26.6]} 23. Kxg3 {[%clk 0:02:11.6]}
23... Ke7 {[%clk 0:02:28.1]} 24. Nd4 {[%clk 0:02:08.5]} 24... Rhc8 {[%clk
0:02:27]} 25. c3 {[%clk 0:02:08.8]} 25... Nb6 {[%clk 0:02:28]} 26. Kf3 {[%clk
0:02:08.8]} 26... Nc4 {[%clk 0:02:27.8]} 27. Ke2 {[%clk 0:02:08.1]} 27... Kd7
{[%clk 0:02:22.8]} 28. Kd3 {[%clk 0:02:09.1]} 28... a5 {[%clk 0:02:15.1]} 29. b3
{[%clk 0:02:03.3]} 29... axb4 {[%clk 0:02:16]} 30. Rxa8 {[%clk 0:02:03.7]} 30...
Rxa8 {[%clk 0:02:16.4]} 31. bxc4 {[%clk 0:02:04.9]} 31... Ra1 {[%clk 0:02:17.3]}
32. Nb3 {[%clk 0:02:04.6]} 32... dxc4+ {[%clk 0:02:06.7]} 33. Kxc4 {[%clk
0:02:05.1]} 33... Ra2 {[%clk 0:02:05.6]} 34. cxb4 {[%clk 0:02:04.8]} 34... Rxg2
{[%clk 0:02:06.4]} 35. b5 {[%clk 0:02:02.8]} 35... Rg3 {[%clk 0:01:59.6]} 36.
Bd2 {[%clk 0:02:02.1]} 36... Rxh3 {[%clk 0:01:57.4]} 37. Nc5+ {[%clk 0:02:02.4]}
37... Kc8 {[%clk 0:01:57.8]} 38. b6 {[%clk 0:02:01.3]} 38... Rf3 {[%clk
0:01:50.9]} 39. Kb5 {[%clk 0:01:59.1]} 39... Rf2 {[%clk 0:01:27.9]} 40. Kc6
{[%clk 0:01:55.8]} 1-0

[Event "*** Titled Tuesday Blitz"]
[Site "Chess.com"]
[Date "2018.10.02"]
[Round "3"]
[White "Zarikovs1999"]
[Black "Gubajdullin"]
[Result "0-1"]
[WhiteElo "2196"]
[BlackElo "2367"]
[TimeControl "180+2"]
[EndTime "13:34:02 PDT"]
[Termination "Gubajdullin won by resignation"]

1. Nf3 {[%clk 0:03:01.9]} 1... g6 {[%clk 0:03:00.1]} 2. h4 {[%clk 0:02:59.5]}
2... h6 {[%clk 0:02:59.7]} 3. d4 {[%clk 0:02:59.2]} 3... Bg7 {[%clk 0:03:00.1]}
4. e3 {[%clk 0:02:59.9]} 4... d6 {[%clk 0:02:59.9]} 5. Bd3 {[%clk 0:03:01.1]}
5... Nf6 {[%clk 0:03:00.5]} 6. Nbd2 {[%clk 0:03:02]} 6... c5 {[%clk 0:02:57.9]}
7. c3 {[%clk 0:03:01.2]} 7... Nc6 {[%clk 0:02:55.7]} 8. Ne4 {[%clk 0:02:56.1]}
8... Nxe4 {[%clk 0:02:51.7]} 9. Bxe4 {[%clk 0:02:56.9]} 9... d5 {[%clk
0:02:52.6]} 10. Bd3 {[%clk 0:02:54.9]} 10... e5 {[%clk 0:02:52.6]} 11. dxe5
{[%clk 0:02:56]} 11... Nxe5 {[%clk 0:02:53.4]} 12. Nxe5 {[%clk 0:02:57.3]} 12...
Bxe5 {[%clk 0:02:54.2]} 13. Bb5+ {[%clk 0:02:32.1]} 13... Kf8 {[%clk 0:02:53.5]}
14. h5 {[%clk 0:02:33.3]} 14... g5 {[%clk 0:02:53.2]} 15. Qe2 {[%clk 0:02:17.5]}
15... a6 {[%clk 0:02:28.8]} 16. Bd3 {[%clk 0:02:15.6]} 16... b5 {[%clk
0:02:16.9]} 17. a4 {[%clk 0:02:02.4]} 17... Qa5 {[%clk 0:02:15.9]} 18. Bd2
{[%clk 0:01:49]} 18... b4 {[%clk 0:02:07.1]} 19. O-O {[%clk 0:01:44.2]} 19...
bxc3 {[%clk 0:02:04.3]} 20. Bxc3 {[%clk 0:01:40.2]} 20... Bxc3 {[%clk
0:02:03.3]} 21. bxc3 {[%clk 0:01:42.1]} 21... c4 {[%clk 0:02:03.3]} 22. Bc2
{[%clk 0:01:34.7]} 22... Qxc3 {[%clk 0:02:03.6]} 23. e4 {[%clk 0:01:35.5]} 23...
d4 {[%clk 0:02:03.2]} 24. Rac1 {[%clk 0:01:26.4]} 24... d3 {[%clk 0:02:02.1]}
25. Qe3 {[%clk 0:01:25.8]} 25... Be6 {[%clk 0:01:59]} 26. Rfd1 {[%clk
0:01:15.1]} 26... Qe5 {[%clk 0:01:57.4]} 27. Bb1 {[%clk 0:01:10.4]} 27... Kg7
{[%clk 0:01:57.2]} 28. Ba2 {[%clk 0:01:10.9]} 28... Rac8 {[%clk 0:01:55.4]} 29.
Rd2 {[%clk 0:00:50.6]} 29... Rhd8 {[%clk 0:01:53.9]} 30. Rcd1 {[%clk 0:00:48.5]}
30... Rd4 {[%clk 0:01:50.9]} 31. f3 {[%clk 0:00:48.1]} 31... Rcd8 {[%clk
0:01:45.7]} 32. Bb1 {[%clk 0:00:36.8]} 32... f5 {[%clk 0:01:40.1]} 33. Re1
{[%clk 0:00:26.8]} 33... f4 {[%clk 0:01:38.7]} 34. Qf2 {[%clk 0:00:23.6]} 34...
c3 {[%clk 0:01:39.6]} 0-1